Cogmind - Beta 12 @@@ ROGUE MODE // 2023.08.28 @ 05:34:05 Player: AAAAAAAAAAAAAAAA Result: Destroyed by S-10 Pest with Light Assault Rifle Performance ------------- Evolutions (1) 500 Regions Visited (2) 400 Robots Destroyed (32) 160 Value Destroyed (603) 603 Prototype IDs (1) 20 Alien Tech Used (0) 0 Bonus (0) 0 TOTAL SCORE: 1683 Bonus ------- None Cogmind --------- Core Integrity 0/400 Matter 300/300 Energy 12/100 System Corruption 1% Temperature Cool (90) Movement Rolling (90) Location -9/Materials Parts ------- > --- POWER (1) -------- (None) > --- PROPULSION (2) --- Armored Wheel Armored Wheel > --- UTILITY (4) ------ Small Storage Unit Weight Redist. System Advanced Visual Processing Unit Light Armor Plating > --- WEAPON (2) ------- Advanced Beam Cannon Advanced Beam Cannon > --- INVENTORY (8) ---- Light Ion Engine Armored Wheel Hover Unit Hover Unit Improved Terrain Scan Processor Improved Terrain Scan Processor Seismic Detector Propulsion Shielding Peak State ------------ > --- POWER ------------ Light Ion Engine > --- PROPULSION ------- Armored Wheel Armored Wheel > --- UTILITY ---------- Small Storage Unit Weight Redist. System Advanced Visual Processing Unit Light Armor Plating > --- WEAPON ----------- Advanced Beam Cannon Advanced Beam Cannon > --- INVENTORY -------- Light Ion Engine Wheel Armored Wheel Hover Unit Improved Terrain Scan Processor Improved Terrain Scan Processor Seismic Detector Propulsion Shielding [Rating: 19] Favorites ----------- Power Ion Engine Engine Ion Engine Propulsion Wheel Leg Aluminum Leg Wheel Wheel Utility Small Storage Unit Device Improved Terrain Scanner Storage Small Storage Unit Processor Advanced Visual Processing Unit Protection Utility Shielding Weapon Light Assault Rifle Energy Gun Small Laser Energy Cannon Advanced Beam Cannon Ballistic Gun Light Assault Rifle Build | -11 -10 -9 ------- Run | Jun Mat Mat Slots Evolved 2 | . . 2 Power . | . . . Propulsion . | . . . Utility 2 | . . 2 Weapon . | . . . Parts Attached 24 | 7 1 16 Power 2 | 1 . 1 Engine 2 | 1 . 1 Core . | . . . Reactor . | . . . Propulsion 7 | 2 1 4 Treads . | . . . Leg 2 | . . 2 Wheel 5 | 2 1 2 Hover . | . . . Flight . | . . . Utility 7 | 2 . 5 Device 2 | 1 . 1 Storage 1 | 1 . . Processor 1 | . . 1 Hackware . | . . . Protection 3 | . . 3 Artifact . | . . . Weapon 8 | 2 . 6 Energy Gun 1 | . . 1 Energy Cannon 2 | . . 2 Ballistic Gun 5 | 2 . 3 Ballistic Cannon . | . . . Launcher . | . . . Special Weapon . | . . . Impact Weapon . | . . . Slashing Weapon . | . . . Piercing Weapon . | . . . Special Melee Weapon . | . . . Unidentified Prototypes 1 | . . 1 Parts Lost 9 | . . 9 Power 2 | . . 2 Propulsion 2 | . . 2 Utility 1 | . . 1 Weapon 4 | . . 4 Highest Loss Streak 6 | . . 6 To Critical Strikes . | . . . Average Slot Usage (%) 95 | . 100 91 Engine 11 | . 14 9 Leg 2 | . . 4 Wheel 21 | . 28 15 Device 10 | . 14 8 Storage 12 | . 14 11 Processor 2 | . . 4 Protection 9 | . . 17 Energy Gun 1 | . . 3 Energy Cannon 3 | . . 6 Ballistic Gun 18 | . 28 9 Naked Turns . | . . . Heaviest Build 19 | 14 14 19 Greatest Support 30 | 20 26 30 Greatest Overweight (x) . | . . . Average Overweight (x) . | . . . Largest Inventory Capacity 8 | 8 8 8 Average Capacity 7 | 7 8 8 Most Carried 8 | 6 8 8 Average Carried 7 | 2 7 7 Final Capacity 8 | 8 8 8 Final Carried 8 | 6 8 8 Class Distribution -------------------- 100% | Mutant Dominant Class ---------------- Mutant | -10/Materials Mutant | -9/Materials Resources | -11 -10 -9 ----------- Run | Jun Mat Mat Matter Collected 682 | 214 192 276 Remotely . | . . . Salvage Created 990 | 26 336 628 Parts 77 | 4 33 40 Haulers Intercepted 2 | . 1 1 Recyclers Shooed 1 | . . 1 Parts Field Recycled . | . . . Retrieved Matter . | . . . Parts Self-Destructed . | . . . Prevented . | . . . Kills | -11 -10 -9 ------- Run | Jun Mat Mat Combat Hostiles Destroyed 21 | . 10 11 Guns 19 | . 10 9 Cannons 2 | . . 2 Classes Destroyed 8 | 1 4 3 Worker 1 | . . 1 Tunneler 2 | 1 . 1 Hauler 2 | . 1 1 Recycler 1 | . . 1 Watcher 5 | . 3 2 Swarmer 11 | . 6 5 Grunt 8 | . 4 4 Sentry 2 | . . 2 Best Kill Streak 6 | 1 6 5 Combat Bots Only 5 | . 5 4 Max Kills in Single Turn 1 | 1 1 1 Gunslinging . | . . . Exploded . | . . . Melee . | . . . Uniques/NPCs Destroyed . | . . . Combat | -11 -10 -9 -------- Run | Jun Mat Mat Damage Taken 1338 | . 284 1054 Core 470 | . 70 400 Absorbed by Shields . | . . . Redirected to Shielding 58 | . . 58 Core Remaining (%) 86 | 100 72 . Volleys Fired 106 | 4 31 71 Largest 2 | 2 2 2 Hottest 136 | 40 40 136 Shots Fired 190 | 8 62 120 Gun 172 | 8 62 102 Cannon 18 | . . 18 Launcher . | . . . Special . | . . . Kinetic 153 | 8 62 83 Thermal 37 | . . 37 Explosive . | . . . Electromagnetic . | . . . Robot Hit Streak 16 | 2 16 13 Robot Miss Streak 4 | 2 2 4 Penetration Max . | . . . Secondary Targets 2 | . . 2 Max Gunslinging Chain 1 | . . 1 Shots Hit Robots 127 | 4 40 83 Core Hits 52 | 1 22 29 Critical Kills . | . . . Critical Parts Destroyed 1 | . . 1 Critical Strikes 1 | . . 1 Destroy 1 | . . 1 Melee Attacks . | . . . Impact . | . . . Slashing . | . . . Piercing . | . . . Sneak Attacks . | . . . Combat Hostiles . | . . . Follow-up Attacks . | . . . Damage Inflicted 1512 | 42 466 1004 Guns 1234 | 42 466 726 Cannons 269 | . . 269 Explosions . | . . . Melee . | . . . Ramming 9 | . . 9 Kinetic 1131 | 42 466 623 Thermal 372 | . . 372 Explosive . | . . . Electromagnetic . | . . . Impact . | . . . Slashing . | . . . Piercing . | . . . Highest Corruption 1 | . . 1 Average Corruption 1 | . . 1 Corruption Purged . | . . . Corruption Blocked . | . . . Effects 2 | . . 2 Message Errors 1 | . . 1 Data Loss (major) 1 | . . 1 Overload Shots . | . . . Overflow Damage 5 | . . 5 Projectiles 5 | . . 5 Explosions . | . . . Melee . | . . . Knockbacks . | . . . Impact . | . . . Kinetic . | . . . Secondary . | . . . Self-Inflicted Damage 3 | . . 3 Shots . | . . . Rammed 6 | . . 6 Targets Rammed 6 | . . 6 Kicked . | . . . Crushed . | . . . Highest Temperature 240 | . 27 240 Average Temperature 45 | . 10 52 Received Heat Transfer 453 | . 114 339 Siege Activations . | . . . Robots Corrupted . | . . . Combat Hostiles . | . . . Parts Fried . | . . . Impact Corruptions . | . . . Robots Melted . | . . . Combat Hostiles . | . . . Parts Melted 1 | . . 1 Heat Transferred 706 | . . 706 Parts Sabotaged . | . . . Parts Stolen . | . . . Parts Stripped . | . . . Power Chain Reactions . | . . . Missiles Intercepted . | . . . Alert | -11 -10 -9 ------- Run | Jun Mat Mat Peak Influence 263 | 5 207 263 Initial 61 | . 3 61 Average 107 | 1 110 113 Maximum Alert Level 1 | . 1 1 Low Security (%) 88 | 100 92 84 Level 1 11 | . 7 15 Level 2 . | . . . Level 3 . | . . . Level 4 . | . . . Level 5 . | . . . High Security . | . . . Max Security . | . . . Squads Dispatched 2 | . 1 1 Investigation 2 | . 1 1 Extermination . | . . . Reinforcement . | . . . Assault . | . . . Garrison . | . . . Intercept . | . . . Searches Triggered . | . . . Construction Impeded . | . . . Haulers Reinforced . | . . . Active Scanning Responses . | . . . Cargo Convoy Interrupts . | . . . Stealth | -11 -10 -9 --------- Run | Jun Mat Mat Distress Signals 3 | . 1 2 Communications Jammed . | . . . Distress Signals . | . . . Times Spotted 35 | . 15 20 Peak Tracking Total 7 | . 4 7 Tactical Retreats 2 | . 1 1 Traps | -11 -10 -9 ------- Run | Jun Mat Mat Traps Triggered 1 | . 1 . Indirectly . | . . . Trap Hack Attempts . | . . . Triggered . | . . . Disarmed . | . . . Reprogrammed 1 | . 1 . Reused . | . . . Traps Extracted . | . . . Installed . | . . . Triggered . | . . . Machines | -11 -10 -9 ---------- Run | Jun Mat Mat Machines Disabled . | . . . Max in Single Turn . | . . . Machines Repaired . | . . . Machines Sabotaged . | . . . Overloaded Fab Kills . | . . . Hacking | -11 -10 -9 --------- Run | Jun Mat Mat Machines Accessed 6 | . 5 1 Terminals 6 | . 5 1 Fabricators . | . . . Repair Stations . | . . . Recycling Units . | . . . Scanalyzers . | . . . Garrison Access . | . . . Total Hacks 26 | . 23 3 Successful 11 | . 11 . Failed 15 | . 12 3 Catastrophic 3 | . 2 1 Database Lockouts . | . . . Manual 6 | . 3 3 Terminals 26 | . 23 3 Fabricators . | . . . Repair Stations . | . . . Recycling Units . | . . . Scanalyzers . | . . . Garrison Access . | . . . Terminal Hacks 11 | . 11 . Record 3 | . 3 . Part Schematic 1 | . 1 . Level Access Points 1 | . 1 . Alert Level 1 | . 1 . Locate Traps 2 | . 2 . Reprogram Traps 1 | . 1 . Zone Layout 2 | . 2 . Fabricator Hacks . | . . . Repair Station Hacks . | . . . Recycling Unit Hacks . | . . . Scanalyzer . | . . . Garrison Access Hacks . | . . . Unauthorized Hacks . | . . . Terminals . | . . . Fabricators . | . . . Repair Stations . | . . . Recycling Units . | . . . Scanalyzers . | . . . Garrison Access . | . . . Data Cores Recovered . | . . . Used . | . . . Hacking Detections 6 | . 5 1 Full Trace Events 1 | . . 1 Feedback Events 1 | . . 1 Corruption 1 | . . 1 Feedback Blocked . | . . . Robot Schematics Acquired . | . . . Robots Built . | . . . Authchips . | . . . Time . | . . . Total Robot Build Rating . | . . . Part Schematics Acquired 1 | . 1 . Parts Built . | . . . Authchips . | . . . Time . | . . . Total Part Build Rating . | . . . Parts Repaired . | . . . Time . | . . . Parts Recycled . | . . . Recycled Matter . | . . . Retrieved Matter . | . . . Retrieved Components . | . . . Parts Scanalyzed . | . . . Part Schematics Acquired . | . . . Parts Damaged . | . . . Bothacking | -11 -10 -9 ------------ Run | Jun Mat Mat Used RIF Installer . | . . . Robots Hacked . | . . . Non-combat . | . . . Combat . | . . . Robot Hacks Applied . | . . . Relay Couplers Released . | . . . Fabnet Peak Effective % . | . . . Robots Rewired . | . . . Allies Hacked . | . . . Hacks Repelled . | . . . Allies | -11 -10 -9 -------- Run | Jun Mat Mat Total Allies . | . . . Largest Group . | . . . Highest-Rated Group . | . . . Highest-Rated Ally . | . . . Total Orders . | . . . Ally Attacks . | . . . Total Damage . | . . . Kills . | . . . Allies Corrupted . | . . . Allies Melted . | . . . Intel | -11 -10 -9 ------- Run | Jun Mat Mat Robot Analysis Total . | . . . Derelict Logs Recovered . | . . . Drone Launches . | . . . Drone Recoveries . | . . . Exploration | -11 -10 -9 ------------- Run | Jun Mat Mat Turns Passed 1619 | 75 738 806 Spaces Moved 1106 | 60 600 446 Core 2 | 2 . . Treads . | . . . Legs 93 | . . 93 Wheels 1011 | 58 600 353 Hover . | . . . Flight . | . . . Fastest Speed 50 | 50 80 90 Average Speed 88 | 79 82 96 Slowest Speed 120 | 80 90 120 Overloaded Moves . | . . . Propulsion Burnouts . | . . . Robots Hopped . | . . . Cave-ins Triggered . | . . . Exploration Rate (%) 39 | 4 79 36 Regions Visited 2 Branch Regions . Pre-discovered Areas . | . . . Known Exits Taken 1 | . 1 . Unknown Exits Taken 1 | 1 . . Scrap Searched . | . . . Spaces Dug . | . . . Terrain Destroyed . | . . . Melee . | . . . Projectile . | . . . AOE . | . . . Terrain Rammed . | . . . Walls Destroyed . | . . . Machines Disabled . | . . . Actions | -11 -10 -9 --------- Run | Jun Mat Mat Total 1569 | 76 785 708 Wait 304 | . 149 155 Move 1104 | 59 599 446 Hop . | . . . Pick Up 14 | 6 3 5 Fast Attach 19 | 7 1 11 Attach 5 | . . 5 Detach 3 | . . 3 Swap . | . . . Drop 8 | . 2 6 Fire 106 | 4 31 71 Melee . | . . . Ram 6 | . . 6 Kick . | . . . Crush . | . . . Escape Stasis . | . . . Rewire . | . . . Trap . | . . . Miscellaneous . | . . . Route ------- -11/Junkyard -10/Materials (discovered 4 exits: *Mat x3 / [*Min]) -9/Materials (discovered 2 exits: [*Mat] / [*Min]) History --------- Turn | Location | Event 19 | -11/Junkyard | Discovered new exit (range 16) 76 | -11/Junkyard | Entered Materials 292 | -10/Materials | Discovered new exit (range 11) 317 | -10/Materials | Build established: Mutant 369 | -10/Materials | Discovered new exit (range 16) 517 | -10/Materials | Identified exit to Materials 814 | -10/Materials | Entered another Materials area 814 | -9/Materials | Evolved 2 slots: Utility x2 1031 | -9/Materials | Core integrity fell below 50% 1045 | -9/Materials | Lost 6 parts (1p1n1u3w) 1077 | -9/Materials | Core integrity fell below 20% 1406 | -9/Materials | Discovered new exit (range 16) 1539 | -9/Materials | Discovered new exit (range 5) 1620 | -9/Materials | Destroyed by S-10 Pest with Light Assault Rifle Last Messages --------------- Investigation squad. 01418_ R-06 Scavenger collects Sml. Laser. 01432_ Dropped Wheel. 01434_ Acquired Hover Unit. 01456_ 5NUOP&WUUEB9WBFBWHGRPATBKOY 01498_ T-07 Excavator destroyed. 01502_ K-01 Serf collects debris. 01505_ Destroyed Wheel. 01508_ K-01 Serf destroyed. 01511_ K-01 Serf collects debris. 01522_ K-01 Serf cleans the Nuclear Reactor. 01525_ K-01 Serf collects debris. 01539_ EXIT=FOUND 01588_ Heat Sink melted. 01588_ Y-45 Defender destroyed. 01602_ Lgt. Ion Engine destroyed. 01602_ Destroyed Flight Unit. 01605_ Destroyed Lgt. Ion Engine. 01607_ System corrupted: Substantial component data lost. 01611_ S-10 Pest destroyed. Map ----- +----------------------------------------------------+ | | | | | | | | | | | ???????????????????????????????????????????? | | ???????????????????????????????????????????? | | ???????????????????????????????????????????? | | ???????????????????????????????????????????? | | ???????????????????????????????????????????? | | ???????????????????????????????????????????? | | ???????????????????????????????????????????? | | ???????????????????????????????????????????? | | ???????????????????????????????????????????? | | ???????????????????????????????????????????? | | ????????????????#####??????????????????????? | | ????????????????+ #???######?????????????? | | ????????????????# #?? #????????????? | | ????????????????# #??"" """ #????????????? | | ????????????????? #?""" """ #????????????? | | ?????????????????# #?""" """ #????????????? | | ?????????????????# # #????????????? | | ?????????????????# # [ ! #????????????? | | ?????????????????# %+[ "Y" #????????????? | | ?????????????????#ss# """ #????????????? | | ?????????????????# @###########????????????? | | ?????# ##+##### #??????????????????????? | | ?????# #########??????????????? | | ?????# [= ?????? | | ?????# #######+###########??????????????? | | ?????#????????# %[ !#?????????????????????? | | ??????????????# #?????????????????????? | | ??????????????# #?????????????????????? | | ??????????????# """ #?????????????????????? | | ??????????????# """ #?????????????????????? | | ??????????????# """^ #?????????????????????? | | ??????????????#####+##?????????????????????? | | ??????????????????# #??????????????????????? | | ????????#########?# #??????????????????????? | | ????????# ?# #?????????????#????????? | | ????????#[[ # #########+### ######???? | | ????????#[ """ # ??? | | ????????? """"" + ??? | | ????????? """"" # ?? | | ?????????? """"" ### ?? | | ?????????? """ ???# ?? | | ?????????? ???# ?? | | ??????????######????# ############### #??? | | ????????????????????# #????????????????????? | | ????????????????????# #????????????????????? | +----------------------------------------------------+ Best States ------------- Heat Dissipation 28 Energy Generation 10 Energy Capacity 250 Matter Stores 300 Matter Capacity 300 Sight Range 20 Terrain Scan Range 16 Terrain Scan Density 10 Additional Mass Support 6 Armor Coverage 150 Propulsion Shielding 33 Utility Shielding 33 Evasion (%) 55 Item Schematics ----------------- Hover Unit | -10/Materials | Hacked Robot Schematics ------------------ None Fabricated ------------ Nothing Alien Tech Used ----------------- None Achievements -------------- None Challenges ------------ None Game ------ Seed TerrainComponentBeamcaster Manual? 0 Play Time 00:23:15 Cumulative 53.8 hours Start 2023.08.28 @ 04:56:00 End 2023.08.28 @ 05:34:05 Sessions 1 Manual Loads 0 Difficulty Rogue Special Mode None Game No. 45 Rogue 40 Adventurer 5 Explorer 0 Win Type - Total 1 Types 1/0/0/0/0/0/0/0/0 Lore% 11 Gallery% 36 Achievement% 28 Wizard Run 0 Options --------- ASCII 0 Keyboard 1 Movement Numpad Keybinds 0 Fullscreen 2 Font 18/Terminus Map View 76x50 Tactical HUD 1 Map Filters NONE Filters NONE Steam 1 RUN: 46d818f6-b759-4eb3-bef6-b994bdd21494